{"text_format":"3","workbook":"xlsx","n_sheets":2,"sheets":["Φόρμα προσφοράς","Ανάλυση κόστους"],"not_rendered":{"charts":1,"images":2,"defined_names":4},"read":"whole","date_system":"1900"}

{"sheet":"Φόρμα προσφοράς","index":0,"n_rows":48,"n_cols":7,"rows_kept":48,"merged":[[15,1,25,5],[29,1,31,5],[35,1,37,5],[43,1,45,5]]}
[]
[null,"ΦΟΡΜΑ ΠΡΟΣΦΟΡΑΣ ΚΑΤΑΣΚΕΥΗΣ",{"$nulls":4}," "]
[]
[]
[null,"ΣΤΟΙΧΕΙΑ ΙΔΙΟΚΤΗΤΗ",null,null,"ΣΤΟΙΧΕΙΑ ΕΡΓΟΛΑΒΟΥ"]
[null,"Όνομα","Λεωνίδας Γιακουμάκης",null,"Εταιρεία","Πανδομική Α.Ε.Τ.Β.Ε."]
[null,"Διεύθυνση","Πανεπιστημίου 1234",null,"Όνομα","Ιωάννης Σιταράς"]
[null,"Πόλη, Νομός, Τ.Κ.","Αθήνα, Αττική 12345",null,"Διεύθυνση","Ακαδημίας 1321"]
[null,"Τηλέφωνο",8885550111,null,"Πόλη, Νομός, Τ.Κ.","Αθήνα, Αττική 12345"]
[null,"Email","leonidas@proseware.com",null,"Τηλέφωνο",8885550123]
[{"$nulls":4},"Email","john@fabrikam.com"]
[null,"Όνομα έργου","Εξωτερική σκάλα σπιτιού",null,"Ημερομηνία ολοκλήρωσης","2013-07-14"]
[]
[null,"ΕΡΓΑΣΙΕΣ"]
[]
[null,"Εδώ γίνεται η ανάλυση των εργασιών. Πληκτρολογήστε όλες τις προδιαγραφές που θέλετε. Το συγκεκριμένο είναι ένα υποθετικό έργο κατασκευής μιας μεγάλης σκάλας. Θα χρησιμοποιήσουμε μόνο ξυλεία διαστάσεων 0,5x1,5 και 0,5x2,5, καθώς και στηρίγματα δοκών, για να κατασκευάσουμε τον σκελετό. Τα σκαλοπάτια θα κοπούν από την ξυλεία 0,5x1,5. Θα χρησιμοποιηθούν βίδες τουλάχιστον 2\". Τα καρφιά θα είναι τουλάχιστον 15 γραμμαρίων. Η αντοχή σχεδίασης θα πρέπει να είναι τουλάχιστον 250 κιλά ανά σκαλοπάτι. Τα σκαλοπάτια θα ευθυγραμμίζονται με εκείνα του σπιτιού. Θα τοποθετηθεί πλάκα στερέωσης στο σπίτι. Ο εργολάβος θα αναλάβει το καθάρισμα."]
{"$rows_empty":11}
[null,"ΔΕΝ ΠΕΡΙΛΑΜΒΑΝΕΤΑΙ"]
[]
[null,"Δεν θα τοποθετηθεί κουπαστή. Η προετοιμασία του εδάφους θα γίνει από τον ιδιοκτήτη. Το βάψιμο της σκάλας θα γίνει από τον ιδιοκτήτη."]
[]
[]
[]
[null,"ΠΡΟΤΑΣΗ ΕΤΑΙΡΕΙΑΣ"]
[]
[null,"Η εταιρεία μας, Πανδομική Α.Ε.Τ.Β.Ε., προσφέρει τις παραπάνω εργασίες, για ολοκλήρωση μέχρι τις 14/7/2011 με αμοιβή 476,43 €."]
[]
[]
[]
[null,"Υπογράφων (Εκπρόσωπος εταιρείας)",{"$nulls":3},"Ημερομηνία"]
[]
[null,"ΑΠΟΔΟΧΗ ΙΔΙΟΚΤΗΤΗ"]
[]
[null,"Ο κάτωθι υπογεγραμμένος Λεωνίδας Γιακουμάκης αποδέχεται την προσφορά για τις παραπάνω εργασίες για ολοκλήρωση μέχρι τις 14/7/2011 με αμοιβή 476,73 €."]
[]
[]
[]
[null,"Υπογράφων (ιδιοκτήτης οικίας ή εξουσιοδοτημένος εκπρόσωπος)",{"$nulls":3},"Ημερομηνία"]

{"sheet":"Ανάλυση κόστους","index":1,"n_rows":47,"n_cols":6,"rows_kept":47,"merged":[[42,3,42,4],[43,3,43,4],[44,3,44,4],[45,3,45,4],[46,3,46,4],[47,3,47,4],[48,3,48,4],[49,3,49,4]]}
[]
[null,"ΣΥΝΟΨΗ ΚΟΣΤΟΥΣ ΠΡΟΣΦΟΡΑΣ",{"$nulls":3}," "]
[]
[]
[null,"ΛΙΣΤΑ ΥΛΙΚΩΝ ΚΑΙ ΚΟΣΤΟΥΣ"]
[]
[null,"Ποσότητα","Περιγραφή","Κόστος","Σύνολο"," "]
[null,5,"Ξυλεία 0,5x2,5x10",{"v":6.75,"d":"6.75 €"},{"$f":"ΣτοιχείαΠροσφοράς[Κόστος]*ΣτοιχείαΠροσφοράς[Ποσότητα]","v":{"v":33.75,"d":"33.75 €"}},{"$f":"_xlfn.RANK.EQ(ΣτοιχείαΠροσφοράς[[#This Row],[Σύνολο]],ΣτοιχείαΠροσφοράς[Σύνολο])","v":4}]
[null,20,"Ξυλεία 0,5x1,5x10",{"v":4.97,"d":"4.97 €"},{"$f":"ΣτοιχείαΠροσφοράς[Κόστος]*ΣτοιχείαΠροσφοράς[Ποσότητα]","v":{"v":99.39999999999999,"d":"99.40 €"}},{"$f":"_xlfn.RANK.EQ(ΣτοιχείαΠροσφοράς[[#This Row],[Σύνολο]],ΣτοιχείαΠροσφοράς[Σύνολο])","v":2}]
[null,30,"Στηρίγματα δοκών",{"v":2.49,"d":"2.49 €"},{"$f":"ΣτοιχείαΠροσφοράς[Κόστος]*ΣτοιχείαΠροσφοράς[Ποσότητα]","v":{"v":74.7,"d":"74.70 €"}},{"$f":"_xlfn.RANK.EQ(ΣτοιχείαΠροσφοράς[[#This Row],[Σύνολο]],ΣτοιχείαΠροσφοράς[Σύνολο])","v":3}]
[null,2,"Κουτί με βίδες, 2 ιντσών",{"v":6.67,"d":"6.67 €"},{"$f":"ΣτοιχείαΠροσφοράς[Κόστος]*ΣτοιχείαΠροσφοράς[Ποσότητα]","v":{"v":13.34,"d":"13.34 €"}},{"$f":"_xlfn.RANK.EQ(ΣτοιχείαΠροσφοράς[[#This Row],[Σύνολο]],ΣτοιχείαΠροσφοράς[Σύνολο])","v":6}]
[null,2,"Κουτί με καρφιά, 15 γρ.",{"v":3.25,"d":"3.25 €"},{"$f":"ΣτοιχείαΠροσφοράς[Κόστος]*ΣτοιχείαΠροσφοράς[Ποσότητα]","v":{"v":6.5,"d":"6.50 €"}},{"$f":"_xlfn.RANK.EQ(ΣτοιχείαΠροσφοράς[[#This Row],[Σύνολο]],ΣτοιχείαΠροσφοράς[Σύνολο])","v":7}]
[null,2,"Ζεύγος γαντιών, δερμάτινα",{"v":7.75,"d":"7.75 €"},{"$f":"ΣτοιχείαΠροσφοράς[Κόστος]*ΣτοιχείαΠροσφοράς[Ποσότητα]","v":{"v":15.5,"d":"15.50 €"}},{"$f":"_xlfn.RANK.EQ(ΣτοιχείαΠροσφοράς[[#This Row],[Σύνολο]],ΣτοιχείαΠροσφοράς[Σύνολο])","v":5}]
[null,2,"Εργατικά",{"v":100,"d":"100.00 €"},{"$f":"ΣτοιχείαΠροσφοράς[Κόστος]*ΣτοιχείαΠροσφοράς[Ποσότητα]","v":{"v":200,"d":"200.00 €"}},{"$f":"_xlfn.RANK.EQ(ΣτοιχείαΠροσφοράς[[#This Row],[Σύνολο]],ΣτοιχείαΠροσφοράς[Σύνολο])","v":1}]
[{"$nulls":4},{"$f":"ΣτοιχείαΠροσφοράς[Κόστος]*ΣτοιχείαΠροσφοράς[Ποσότητα]","v":0},{"$f":"_xlfn.RANK.EQ(ΣτοιχείαΠροσφοράς[[#This Row],[Σύνολο]],ΣτοιχείαΠροσφοράς[Σύνολο])","v":8}]
[{"$nulls":4},{"$f":"ΣτοιχείαΠροσφοράς[Κόστος]*ΣτοιχείαΠροσφοράς[Ποσότητα]","v":0},{"$f":"_xlfn.RANK.EQ(ΣτοιχείαΠροσφοράς[[#This Row],[Σύνολο]],ΣτοιχείαΠροσφοράς[Σύνολο])","v":8}]
[{"$nulls":4},{"$f":"ΣτοιχείαΠροσφοράς[Κόστος]*ΣτοιχείαΠροσφοράς[Ποσότητα]","v":0},{"$f":"_xlfn.RANK.EQ(ΣτοιχείαΠροσφοράς[[#This Row],[Σύνολο]],ΣτοιχείαΠροσφοράς[Σύνολο])","v":8}]
[{"$nulls":4},{"$f":"ΣτοιχείαΠροσφοράς[Κόστος]*ΣτοιχείαΠροσφοράς[Ποσότητα]","v":0},{"$f":"_xlfn.RANK.EQ(ΣτοιχείαΠροσφοράς[[#This Row],[Σύνολο]],ΣτοιχείαΠροσφοράς[Σύνολο])","v":8}]
[{"$nulls":4},{"$f":"ΣτοιχείαΠροσφοράς[Κόστος]*ΣτοιχείαΠροσφοράς[Ποσότητα]","v":0},{"$f":"_xlfn.RANK.EQ(ΣτοιχείαΠροσφοράς[[#This Row],[Σύνολο]],ΣτοιχείαΠροσφοράς[Σύνολο])","v":8}]
[{"$nulls":4},{"$f":"ΣτοιχείαΠροσφοράς[Κόστος]*ΣτοιχείαΠροσφοράς[Ποσότητα]","v":0},{"$f":"_xlfn.RANK.EQ(ΣτοιχείαΠροσφοράς[[#This Row],[Σύνολο]],ΣτοιχείαΠροσφοράς[Σύνολο])","v":8}]
[{"$nulls":4},{"$f":"ΣτοιχείαΠροσφοράς[Κόστος]*ΣτοιχείαΠροσφοράς[Ποσότητα]","v":0},{"$f":"_xlfn.RANK.EQ(ΣτοιχείαΠροσφοράς[[#This Row],[Σύνολο]],ΣτοιχείαΠροσφοράς[Σύνολο])","v":8}]
[{"$nulls":4},{"$f":"ΣτοιχείαΠροσφοράς[Κόστος]*ΣτοιχείαΠροσφοράς[Ποσότητα]","v":0},{"$f":"_xlfn.RANK.EQ(ΣτοιχείαΠροσφοράς[[#This Row],[Σύνολο]],ΣτοιχείαΠροσφοράς[Σύνολο])","v":8}]
[{"$nulls":4},{"$f":"ΣτοιχείαΠροσφοράς[Κόστος]*ΣτοιχείαΠροσφοράς[Ποσότητα]","v":0},{"$f":"_xlfn.RANK.EQ(ΣτοιχείαΠροσφοράς[[#This Row],[Σύνολο]],ΣτοιχείαΠροσφοράς[Σύνολο])","v":8}]
[{"$nulls":4},{"$f":"ΣτοιχείαΠροσφοράς[Κόστος]*ΣτοιχείαΠροσφοράς[Ποσότητα]","v":0},{"$f":"_xlfn.RANK.EQ(ΣτοιχείαΠροσφοράς[[#This Row],[Σύνολο]],ΣτοιχείαΠροσφοράς[Σύνολο])","v":8}]
[{"$nulls":4},{"$f":"ΣτοιχείαΠροσφοράς[Κόστος]*ΣτοιχείαΠροσφοράς[Ποσότητα]","v":0},{"$f":"_xlfn.RANK.EQ(ΣτοιχείαΠροσφοράς[[#This Row],[Σύνολο]],ΣτοιχείαΠροσφοράς[Σύνολο])","v":8}]
[{"$nulls":4},{"$f":"ΣτοιχείαΠροσφοράς[Κόστος]*ΣτοιχείαΠροσφοράς[Ποσότητα]","v":0},{"$f":"_xlfn.RANK.EQ(ΣτοιχείαΠροσφοράς[[#This Row],[Σύνολο]],ΣτοιχείαΠροσφοράς[Σύνολο])","v":8}]
[{"$nulls":4},{"$f":"ΣτοιχείαΠροσφοράς[Κόστος]*ΣτοιχείαΠροσφοράς[Ποσότητα]","v":0},{"$f":"_xlfn.RANK.EQ(ΣτοιχείαΠροσφοράς[[#This Row],[Σύνολο]],ΣτοιχείαΠροσφοράς[Σύνολο])","v":8}]
[{"$nulls":4},{"$f":"ΣτοιχείαΠροσφοράς[Κόστος]*ΣτοιχείαΠροσφοράς[Ποσότητα]","v":0},{"$f":"_xlfn.RANK.EQ(ΣτοιχείαΠροσφοράς[[#This Row],[Σύνολο]],ΣτοιχείαΠροσφοράς[Σύνολο])","v":8}]
[{"$nulls":4},{"$f":"ΣτοιχείαΠροσφοράς[Κόστος]*ΣτοιχείαΠροσφοράς[Ποσότητα]","v":0},{"$f":"_xlfn.RANK.EQ(ΣτοιχείαΠροσφοράς[[#This Row],[Σύνολο]],ΣτοιχείαΠροσφοράς[Σύνολο])","v":8}]
[{"$nulls":4},{"$f":"ΣτοιχείαΠροσφοράς[Κόστος]*ΣτοιχείαΠροσφοράς[Ποσότητα]","v":0},{"$f":"_xlfn.RANK.EQ(ΣτοιχείαΠροσφοράς[[#This Row],[Σύνολο]],ΣτοιχείαΠροσφοράς[Σύνολο])","v":8}]
[1,{"$nulls":3},{"$f":"ΣτοιχείαΠροσφοράς[Κόστος]*ΣτοιχείαΠροσφοράς[Ποσότητα]","v":0},{"$f":"_xlfn.RANK.EQ(ΣτοιχείαΠροσφοράς[[#This Row],[Σύνολο]],ΣτοιχείαΠροσφοράς[Σύνολο])","v":8}]
[2,null,null,"Μερικό σύνολο",{"$f":"SUBTOTAL(109,ΣτοιχείαΠροσφοράς[Σύνολο])","v":{"v":443.18999999999994,"d":"443.19 €"}}]
[3,null,null,"Συντελεστής ΦΠΑ",{"v":0.075,"d":"0.08 €"}]
[4,null,null,"ΦΠΑ",{"$f":"TaxRate*ΣτοιχείαΠροσφοράς[[#Totals],[Σύνολο]]","v":{"v":33.23924999999999,"d":"33.24 €"}}]
[5,null,null,"Γενικό σύνολο",{"$f":"Tax+ΣτοιχείαΠροσφοράς[[#Totals],[Σύνολο]]","v":{"v":476.4292499999999,"d":"476.43 €"}}]
[]
[]
[]
[null,"ΑΝΑΛΥΣΗ ΥΛΙΚΩΝ ΚΑΙ ΚΟΣΤΟΥΣ"]
[]
[]
[null,null,"TOTAL","ΣΗΜΕΙΩΣΕΙΣ"]
[null,{"$f":"INDEX(ΣτοιχείαΠροσφοράς[],MATCH(A31,ΣτοιχείαΠροσφοράς[[ ]],0),2)","v":"Εργατικά"},{"$f":"INDEX(ΣτοιχείαΠροσφοράς[],MATCH(A31,ΣτοιχείαΠροσφοράς[[ ]],0),4)","v":{"v":200,"d":"$200.00"}}]
[null,{"$f":"INDEX(ΣτοιχείαΠροσφοράς[],MATCH(A32,ΣτοιχείαΠροσφοράς[[ ]],0),2)","v":"Ξυλεία 0,5x1,5x10"},{"$f":"INDEX(ΣτοιχείαΠροσφοράς[],MATCH(A32,ΣτοιχείαΠροσφοράς[[ ]],0),4)","v":{"v":99.39999999999999,"d":"$99.40"}}]
[null,{"$f":"INDEX(ΣτοιχείαΠροσφοράς[],MATCH(A33,ΣτοιχείαΠροσφοράς[[ ]],0),2)","v":"Στηρίγματα δοκών"},{"$f":"INDEX(ΣτοιχείαΠροσφοράς[],MATCH(A33,ΣτοιχείαΠροσφοράς[[ ]],0),4)","v":{"v":74.7,"d":"$74.70"}}]
[null,{"$f":"INDEX(ΣτοιχείαΠροσφοράς[],MATCH(A34,ΣτοιχείαΠροσφοράς[[ ]],0),2)","v":"Ξυλεία 0,5x2,5x10"},{"$f":"INDEX(ΣτοιχείαΠροσφοράς[],MATCH(A34,ΣτοιχείαΠροσφοράς[[ ]],0),4)","v":{"v":33.75,"d":"$33.75"}}]
[null,{"$f":"INDEX(ΣτοιχείαΠροσφοράς[],MATCH(A35,ΣτοιχείαΠροσφοράς[[ ]],0),2)","v":"Ζεύγος γαντιών, δερμάτινα"},{"$f":"INDEX(ΣτοιχείαΠροσφοράς[],MATCH(A35,ΣτοιχείαΠροσφοράς[[ ]],0),4)","v":{"v":15.5,"d":"$15.50"}}]